[Event "Titled Tuesday Blitz April 12 Early 2022"]
[White "Sailer, Mike"]
[Black "Tregubov, Pavel V."]
[WhiteFideId "2012901"]
[BlackFideId "4115341"]
[WhiteElo "2109"]
[BlackElo "2341"]
[Result "0-1"]
[Round "08"]
[TimeControl "180+1"]
[Date "2022.04.13"]
[WhiteClock "0:00:03"]
[BlackClock "0:00:22"]

1. d4 {[%clk 0:03:00]}  Nf6 {[%clk 0:02:58]} 2. Nf3 {[%clk 0:02:57]}  e6 {[%clk 0:02:55]} 3. Bf4 {[%clk 0:02:57]}  c5 {[%clk 0:02:55]} 4. e3 {[%clk 0:02:58]}  b6 {[%clk 0:02:53]} 5. c4 {[%clk 0:02:58]}  Bb7 {[%clk 0:02:53]} 6. Nc3 {[%clk 0:02:58]}  cxd4 {[%clk 0:02:53]} 7. exd4 {[%clk 0:02:58]}  d5 {[%clk 0:02:51]} 8. cxd5 {[%clk 0:02:55]}  Nxd5 {[%clk 0:02:51]} 9. Nxd5 {[%clk 0:02:52]}  Qxd5 {[%clk 0:02:43]} 10. Be2 {[%clk 0:01:55]}  Bb4+ {[%clk 0:02:42]} 11. Bd2 {[%clk 0:01:55]}  Bxd2+ {[%clk 0:02:31]} 12. Qxd2 {[%clk 0:01:55]}  Nc6 {[%clk 0:02:30]} 13. O-O {[%clk 0:01:52]}  O-O {[%clk 0:02:29]} 14. Rfd1 {[%clk 0:01:51]}  Rac8 {[%clk 0:02:27]} 15. Rac1 {[%clk 0:01:39]}  Ne7 {[%clk 0:02:25]} 16. Rxc8 {[%clk 0:01:38]}  Rxc8 {[%clk 0:02:24]} 17. Ne1 {[%clk 0:01:38]}  Qxa2 {[%clk 0:02:21]} 18. Bf3 {[%clk 0:01:35]}  Bd5 {[%clk 0:02:14]} 19. h3 {[%clk 0:01:31]}  h6 {[%clk 0:02:13]} 20. Bxd5 {[%clk 0:01:25]}  Nxd5 {[%clk 0:02:13]} 21. Nf3 {[%clk 0:01:21]}  Qb3 {[%clk 0:02:13]} 22. Rc1 {[%clk 0:01:18]}  Rc4 {[%clk 0:02:08]} 23. Rxc4 {[%clk 0:01:17]}  Qxc4 {[%clk 0:02:08]} 24. Ne5 {[%clk 0:01:14]}  Qb4 {[%clk 0:01:58]} 25. Qc1 {[%clk 0:00:37]}  Ne7 {[%clk 0:01:20]} 26. Qc7 {[%clk 0:00:18]}  f6 {[%clk 0:01:10]} 27. Qd8+ {[%clk 0:00:17]}  Kh7 {[%clk 0:01:10]} 28. Nd7 {[%clk 0:00:17]}  Ng6 {[%clk 0:01:04]} 29. Qc7 {[%clk 0:00:05]}  Kg8 {[%clk 0:00:38]} 30. Qd8+ {[%clk 0:00:04]}  Kf7 {[%clk 0:00:37]} 31. Qc7 {[%clk 0:00:04]}  Qe7 {[%clk 0:00:34]} 32. Qc6 {[%clk 0:00:04]}  Nf4 {[%clk 0:00:27]} 33. Nb8 {[%clk 0:00:04]}  Ne2+ {[%clk 0:00:24]} 34. Kf1 {[%clk 0:00:04]}  Nxd4 {[%clk 0:00:25]} 35. Qa8 {[%clk 0:00:04]}  Qc5 {[%clk 0:00:21]} 36. Qxa7+ {[%clk 0:00:04]}  Kg6 {[%clk 0:00:22]} 37. Nd7 {[%clk 0:00:03]}  Qc1# {[%clk 0:00:22]} 0-1


[Site "https://www.chess.com"]

[Event "Titled Tuesday Blitz April 12 Early 2022"]
[White "Samant Aditya S"]
[Black "Raahul V S"]
[WhiteFideId "35080580"]
[BlackFideId "25035525"]
[WhiteElo "1916"]
[BlackElo "2185"]
[Result "0-1"]
[Round "08"]
[TimeControl "180+1"]
[Date "2022.04.13"]
[WhiteClock "0:00:08"]
[BlackClock "0:00:33"]

1. d4 {[%clk 0:02:59]}  d5 {[%clk 0:02:58]} 2. c4 {[%clk 0:02:59]}  c6 {[%clk 0:02:58]} 3. Nf3 {[%clk 0:02:59]}  Nf6 {[%clk 0:02:58]} 4. Nc3 {[%clk 0:03:00]}  e6 {[%clk 0:02:58]} 5. e3 {[%clk 0:02:59]}  Nbd7 {[%clk 0:02:57]} 6. b3 {[%clk 0:02:57]}  c5 {[%clk 0:02:41]} 7. cxd5 {[%clk 0:02:52]}  cxd4 {[%clk 0:02:41]} 8. Nxd4 {[%clk 0:02:47]}  Bb4 {[%clk 0:02:33]} 9. Bd2 {[%clk 0:02:47]}  Qa5 {[%clk 0:02:30]} 10. Ndb5 {[%clk 0:02:18]}  a6 {[%clk 0:02:18]} 11. a3 {[%clk 0:02:16]}  axb5 {[%clk 0:02:17]} 12. Nxb5 {[%clk 0:02:09]}  Bxd2+ {[%clk 0:02:15]} 13. Qxd2 {[%clk 0:02:10]}  Qxd2+ {[%clk 0:02:13]} 14. Kxd2 {[%clk 0:02:11]}  O-O {[%clk 0:01:58]} 15. dxe6 {[%clk 0:02:11]}  fxe6 {[%clk 0:01:57]} 16. f3 {[%clk 0:01:42]}  Nc5 {[%clk 0:01:55]} 17. Bc4 {[%clk 0:01:40]}  Bd7 {[%clk 0:01:55]} 18. a4 {[%clk 0:01:08]}  Nd5 {[%clk 0:01:45]} 19. Bxd5 {[%clk 0:00:55]}  exd5 {[%clk 0:01:45]} 20. Nd4 {[%clk 0:00:55]}  b6 {[%clk 0:01:32]} 21. Rac1 {[%clk 0:00:53]}  Rfe8 {[%clk 0:01:21]} 22. Rc3 {[%clk 0:00:51]}  Re7 {[%clk 0:01:21]} 23. Rhc1 {[%clk 0:00:46]}  g5 {[%clk 0:01:13]} 24. g4 {[%clk 0:00:39]}  h5 {[%clk 0:01:09]} 25. gxh5 {[%clk 0:00:26]}  g4 {[%clk 0:00:54]} 26. Rg1 {[%clk 0:00:25]}  Kh8 {[%clk 0:00:44]} 27. b4 {[%clk 0:00:13]}  Nxa4 {[%clk 0:00:43]} 28. Rc7 {[%clk 0:00:13]}  gxf3 {[%clk 0:00:42]} 29. h6 {[%clk 0:00:10]}  f2 {[%clk 0:00:37]} 30. Rf1 {[%clk 0:00:10]}  Rf7 {[%clk 0:00:38]} 31. Ke2 {[%clk 0:00:07]}  Bg4+ {[%clk 0:00:37]} 32. Kd3 {[%clk 0:00:07]}  Nb2+ {[%clk 0:00:32]} 33. Kc2 {[%clk 0:00:07]}  Rxc7+ {[%clk 0:00:33]} 34. Kxb2 {[%clk 0:00:08]}  Rf7 {[%clk 0:00:33]} 35. Kc3 {[%clk 0:00:08]}  Bh3 {[%clk 0:00:33]} 0-1


[Site "https://www.chess.com"]

[Event "Titled Tuesday Blitz April 12 Early 2022"]
[White "Shimanov, Aleksandr"]
[Black "Weetik, Vjacheslav"]
[WhiteFideId "4198603"]
[BlackFideId "4153472"]
[WhiteElo "2636"]
[BlackElo "2469"]
[Result "1-0"]
[Round "08"]
[TimeControl "180+1"]
[Date "2022.04.12"]
[WhiteClock "0:00:16"]
[BlackClock "0:00:03"]

1. d4 {[%clk 0:03:00]}  Nf6 {[%clk 0:02:53]} 2. Nc3 {[%clk 0:02:59]}  d5 {[%clk 0:02:53]} 3. Bf4 {[%clk 0:02:59]}  c5 {[%clk 0:02:53]} 4. e4 {[%clk 0:02:58]}  e6 {[%clk 0:02:23]} 5. e5 {[%clk 0:02:34]}  Nfd7 {[%clk 0:02:16]} 6. Nf3 {[%clk 0:02:24]}  Nc6 {[%clk 0:02:16]} 7. dxc5 {[%clk 0:02:21]}  Bxc5 {[%clk 0:02:14]} 8. Bd3 {[%clk 0:02:17]}  f6 {[%clk 0:02:14]} 9. exf6 {[%clk 0:02:13]}  Nxf6 {[%clk 0:02:14]} 10. Qe2 {[%clk 0:02:09]}  O-O {[%clk 0:02:11]} 11. O-O-O {[%clk 0:02:08]}  Nh5 {[%clk 0:01:48]} 12. Bg5 {[%clk 0:01:33]}  Nf4 {[%clk 0:01:27]} 13. Bxf4 {[%clk 0:01:09]}  Rxf4 {[%clk 0:01:27]} 14. h4 {[%clk 0:01:10]}  Qf6 {[%clk 0:00:58]} 15. Kb1 {[%clk 0:00:59]}  Bd7 {[%clk 0:00:57]} 16. Rh3 {[%clk 0:00:38]}  Nd4 {[%clk 0:00:56]} 17. Nxd4 {[%clk 0:00:37]}  Bxd4 {[%clk 0:00:57]} 18. Qh5 {[%clk 0:00:26]}  g6 {[%clk 0:00:54]} 19. Qh6 {[%clk 0:00:24]}  Rf8 {[%clk 0:00:13]} 20. Ne2 {[%clk 0:00:21]}  Bxb2 {[%clk 0:00:04]} 21. Qxf4 {[%clk 0:00:19]}  Qg7 {[%clk 0:00:03]} 22. Qb4 {[%clk 0:00:19]}  Be5 {[%clk 0:00:02]} 23. Rf3 {[%clk 0:00:18]}  Rc8 {[%clk 0:00:02]} 24. h5 {[%clk 0:00:17]}  Bc6 {[%clk 0:00:02]} 25. hxg6 {[%clk 0:00:17]}  hxg6 {[%clk 0:00:03]} 26. Nf4 {[%clk 0:00:16]}  a5 {[%clk 0:00:03]} 27. Qb3 {[%clk 0:00:16]}  a4 {[%clk 0:00:04]} 28. Qb4 {[%clk 0:00:16]}  Qd7 {[%clk 0:00:03]} 29. Nxg6 {[%clk 0:00:16]}  Bg7 {[%clk 0:00:03]} 30. Ne7+ {[%clk 0:00:16]} 1-0


[Site "https://www.chess.com"]

[Event "Titled Tuesday Blitz April 12 Early 2022"]
[White "Shohat, Yotam"]
[Black "Dronavalli, Harika"]
[WhiteFideId "2813955"]
[BlackFideId "5015197"]
[WhiteElo "2119"]
[BlackElo "2382"]
[Result "0-1"]
[Round "08"]
[TimeControl "180+1"]
[Date "2022.04.13"]
[WhiteClock "0:00:01"]
[BlackClock "0:00:53"]

1. e4 {[%clk 0:03:00]}  c5 {[%clk 0:02:59]} 2. Nf3 {[%clk 0:03:00]}  e6 {[%clk 0:03:00]} 3. g3 {[%clk 0:02:59]}  Nc6 {[%clk 0:02:58]} 4. Bg2 {[%clk 0:02:58]}  d5 {[%clk 0:02:58]} 5. exd5 {[%clk 0:02:58]}  exd5 {[%clk 0:02:58]} 6. d4 {[%clk 0:02:59]}  cxd4 {[%clk 0:02:57]} 7. Nxd4 {[%clk 0:02:50]}  Bc5 {[%clk 0:02:58]} 8. Be3 {[%clk 0:02:27]}  Bxd4 {[%clk 0:02:44]} 9. Bxd4 {[%clk 0:02:24]}  Qe7+ {[%clk 0:02:43]} 10. Be3 {[%clk 0:02:22]}  Nf6 {[%clk 0:02:41]} 11. O-O {[%clk 0:02:21]}  O-O {[%clk 0:02:40]} 12. Nc3 {[%clk 0:02:18]}  Be6 {[%clk 0:02:33]} 13. Bd4 {[%clk 0:02:07]}  Rfd8 {[%clk 0:02:28]} 14. Re1 {[%clk 0:02:05]}  Ne4 {[%clk 0:02:21]} 15. Qd3 {[%clk 0:01:42]}  Nxc3 {[%clk 0:02:05]} 16. Qxc3 {[%clk 0:01:26]}  Rac8 {[%clk 0:02:04]} 17. Rac1 {[%clk 0:01:08]}  Nxd4 {[%clk 0:01:53]} 18. Qxd4 {[%clk 0:01:09]}  b6 {[%clk 0:01:52]} 19. Bxd5 {[%clk 0:00:49]}  Qg5 {[%clk 0:01:37]} 20. Bxe6 {[%clk 0:00:27]}  Rxd4 {[%clk 0:01:35]} 21. Bxc8 {[%clk 0:00:27]}  g6 {[%clk 0:01:34]} 22. Bb7 {[%clk 0:00:14]}  Rd2 {[%clk 0:01:31]} 23. Rf1 {[%clk 0:00:05]}  h5 {[%clk 0:01:26]} 24. h4 {[%clk 0:00:04]}  Qc5 {[%clk 0:01:26]} 25. Be4 {[%clk 0:00:03]}  Qd4 {[%clk 0:01:25]} 26. Bd3 {[%clk 0:00:03]}  Kg7 {[%clk 0:01:21]} 27. b3 {[%clk 0:00:03]}  a5 {[%clk 0:01:19]} 28. Rcd1 {[%clk 0:00:04]}  Rxd1 {[%clk 0:01:16]} 29. Rxd1 {[%clk 0:00:04]}  a4 {[%clk 0:01:17]} 30. bxa4 {[%clk 0:00:04]}  Qxa4 {[%clk 0:01:17]} 31. Rb1 {[%clk 0:00:05]}  Qa5 {[%clk 0:01:13]} 32. a4 {[%clk 0:00:04]}  Kf8 {[%clk 0:01:07]} 33. Rb5 {[%clk 0:00:03]}  Qe1+ {[%clk 0:01:07]} 34. Kg2 {[%clk 0:00:03]}  Qe6 {[%clk 0:01:07]} 35. Rb4 {[%clk 0:00:02]}  Qc6+ {[%clk 0:01:07]} 36. Be4 {[%clk 0:00:02]}  Qc5 {[%clk 0:01:07]} 37. Rb5 {[%clk 0:00:02]}  Qd4 {[%clk 0:01:07]} 38. Bd3 {[%clk 0:00:02]}  Ke7 {[%clk 0:01:03]} 39. a5 {[%clk 0:00:02]}  bxa5 {[%clk 0:01:01]} 40. Rxa5 {[%clk 0:00:03]}  Qb6 {[%clk 0:00:59]} 41. Rb5 {[%clk 0:00:03]}  Qc6+ {[%clk 0:00:59]} 42. Kg1 {[%clk 0:00:04]}  Kf6 {[%clk 0:00:58]} 43. Rb1 {[%clk 0:00:04]}  Qc3 {[%clk 0:00:58]} 44. Rd1 {[%clk 0:00:04]}  Ke5 {[%clk 0:00:57]} 45. Kg2 {[%clk 0:00:04]}  f5 {[%clk 0:00:57]} 46. Rf1 {[%clk 0:00:03]}  f4 {[%clk 0:00:55]} 47. Bxg6 {[%clk 0:00:02]}  Qc6+ {[%clk 0:00:55]} 48. Kh2 {[%clk 0:00:01]}  Qxg6 {[%clk 0:00:53]} 49. Re1+ {[%clk 0:00:02]}  Kf5 {[%clk 0:00:53]} 50. Rg1 {[%clk 0:00:02]}  Qc6 {[%clk 0:00:52]} 51. gxf4 {[%clk 0:00:02]}  Qxc2 {[%clk 0:00:52]} 52. Rg5+ {[%clk 0:00:01]}  Kxf4 {[%clk 0:00:53]} 0-1


[Site "https://www.chess.com"]

[Event "Titled Tuesday Blitz April 12 Early 2022"]
[White "Shtyka, Sergey"]
[Black "Rostovtsev, Dmitry"]
[WhiteFideId "4138465"]
[BlackFideId "34278320"]
[WhiteElo "2014"]
[BlackElo "2272"]
[Result "1-0"]
[Round "08"]
[TimeControl "180+1"]
[Date "2022.04.13"]
[WhiteClock "0:00:03"]
[BlackClock "0:00:26"]

1. e4 {[%clk 0:03:00]}  g6 {[%clk 0:02:56]} 2. d4 {[%clk 0:03:00]}  Bg7 {[%clk 0:02:57]} 3. Nc3 {[%clk 0:03:00]}  d6 {[%clk 0:02:58]} 4. g3 {[%clk 0:03:01]}  Nf6 {[%clk 0:02:58]} 5. Bg2 {[%clk 0:03:01]}  O-O {[%clk 0:02:58]} 6. Nge2 {[%clk 0:03:01]}  Bd7 {[%clk 0:02:58]} 7. h3 {[%clk 0:03:00]}  Qc8 {[%clk 0:02:58]} 8. Be3 {[%clk 0:02:58]}  c5 {[%clk 0:02:58]} 9. Qd2 {[%clk 0:02:57]}  cxd4 {[%clk 0:02:58]} 10. Nxd4 {[%clk 0:02:57]}  Nc6 {[%clk 0:02:59]} 11. g4 {[%clk 0:02:51]}  Ne5 {[%clk 0:02:58]} 12. b3 {[%clk 0:02:39]}  h5 {[%clk 0:02:53]} 13. f4 {[%clk 0:02:36]}  Nc6 {[%clk 0:02:52]} 14. g5 {[%clk 0:02:34]}  Nh7 {[%clk 0:02:52]} 15. Nd5 {[%clk 0:02:28]}  Re8 {[%clk 0:02:52]} 16. c4 {[%clk 0:02:19]}  Nf8 {[%clk 0:02:47]} 17. Rd1 {[%clk 0:02:17]}  Ne6 {[%clk 0:02:46]} 18. Nb5 {[%clk 0:02:01]}  a6 {[%clk 0:02:41]} 19. Nb6 {[%clk 0:01:39]}  Qd8 {[%clk 0:02:41]} 20. Nxd6 {[%clk 0:01:22]}  exd6 {[%clk 0:02:22]} 21. Qxd6 {[%clk 0:01:22]}  Ned4 {[%clk 0:02:04]} 22. Nxa8 {[%clk 0:01:06]}  Qa5+ {[%clk 0:01:52]} 23. Bd2 {[%clk 0:00:59]}  Qxa2 {[%clk 0:01:47]} 24. Qxd7 {[%clk 0:00:44]}  Rxa8 {[%clk 0:01:40]} 25. Qxb7 {[%clk 0:00:41]}  Rb8 {[%clk 0:01:37]} 26. Qc7 {[%clk 0:00:38]}  Nc2+ {[%clk 0:01:21]} 27. Kf2 {[%clk 0:00:35]}  Bd4+ {[%clk 0:01:18]} 28. Kg3 {[%clk 0:00:34]}  Rxb3+ {[%clk 0:01:15]} 29. Kh2 {[%clk 0:00:34]}  N6b4 {[%clk 0:00:47]} 30. Bxb4 {[%clk 0:00:26]}  Rxb4 {[%clk 0:00:48]} 31. Rxd4 {[%clk 0:00:22]}  Ne3 {[%clk 0:00:29]} 32. Rg1 {[%clk 0:00:15]}  Rb2 {[%clk 0:00:29]} 33. Rd8+ {[%clk 0:00:04]}  Kg7 {[%clk 0:00:25]} 34. Qe5+ {[%clk 0:00:03]}  Kh7 {[%clk 0:00:26]} 35. Qh8# {[%clk 0:00:03]} 1-0


[Site "https://www.chess.com"]

[Event "Titled Tuesday Blitz April 12 Early 2022"]
[White "Stanisz, Patryk"]
[Black "Kadam, Om Manish"]
[WhiteFideId "1123106"]
[BlackFideId "45076294"]
[WhiteElo "1833"]
[BlackElo "1729"]
[Result "0-1"]
[Round "08"]
[TimeControl "180+1"]
[Date "2022.04.13"]
[WhiteClock "0:00:02"]
[BlackClock "0:00:16"]

1. d4 {[%clk 0:03:00]}  Nf6 {[%clk 0:02:47]} 2. c4 {[%clk 0:03:01]}  g6 {[%clk 0:02:46]} 3. Nc3 {[%clk 0:03:01]}  d5 {[%clk 0:02:43]} 4. Bf4 {[%clk 0:02:57]}  Bg7 {[%clk 0:02:43]} 5. e3 {[%clk 0:02:57]}  O-O {[%clk 0:02:43]} 6. Rc1 {[%clk 0:02:57]}  c6 {[%clk 0:02:39]} 7. Nf3 {[%clk 0:02:56]}  Bg4 {[%clk 0:02:37]} 8. cxd5 {[%clk 0:02:51]}  cxd5 {[%clk 0:02:36]} 9. Qb3 {[%clk 0:02:49]}  Nbd7 {[%clk 0:02:09]} 10. Ne5 {[%clk 0:02:48]}  Nb6 {[%clk 0:02:02]} 11. a4 {[%clk 0:02:37]}  a5 {[%clk 0:01:33]} 12. Nb5 {[%clk 0:01:58]}  Rc8 {[%clk 0:01:23]} 13. Rc3 {[%clk 0:01:55]}  Bd7 {[%clk 0:00:56]} 14. Nxd7 {[%clk 0:01:52]}  Qxd7 {[%clk 0:00:47]} 15. Be2 {[%clk 0:01:46]}  Ne4 {[%clk 0:00:41]} 16. Rxc8 {[%clk 0:01:41]}  Rxc8 {[%clk 0:00:42]} 17. O-O {[%clk 0:01:35]}  Nd2 {[%clk 0:00:41]} 18. Qd1 {[%clk 0:01:04]}  Nxf1 {[%clk 0:00:41]} 19. Bxf1 {[%clk 0:01:04]}  Nc4 {[%clk 0:00:37]} 20. b3 {[%clk 0:01:01]}  Nd6 {[%clk 0:00:29]} 21. Qd2 {[%clk 0:00:49]}  b6 {[%clk 0:00:28]} 22. Nxd6 {[%clk 0:00:42]}  exd6 {[%clk 0:00:28]} 23. h3 {[%clk 0:00:41]}  Bf8 {[%clk 0:00:20]} 24. Bb5 {[%clk 0:00:37]}  Qc7 {[%clk 0:00:20]} 25. Qe2 {[%clk 0:00:32]}  Qc1+ {[%clk 0:00:20]} 26. Kh2 {[%clk 0:00:32]}  Qc2 {[%clk 0:00:21]} 27. Qg4 {[%clk 0:00:30]}  Qf5 {[%clk 0:00:21]} 28. Qe2 {[%clk 0:00:16]}  Rc2 {[%clk 0:00:19]} 29. Qf3 {[%clk 0:00:16]}  Qe4 {[%clk 0:00:19]} 30. Qg3 {[%clk 0:00:13]}  h5 {[%clk 0:00:18]} 31. h4 {[%clk 0:00:07]}  Be7 {[%clk 0:00:15]} 32. f3 {[%clk 0:00:03]}  Qf5 {[%clk 0:00:15]} 33. e4 {[%clk 0:00:02]}  dxe4 {[%clk 0:00:15]} 34. fxe4 {[%clk 0:00:03]}  Qxe4 {[%clk 0:00:16]} 35. Bxd6 {[%clk 0:00:03]}  Bxd6 {[%clk 0:00:15]} 36. Qxd6 {[%clk 0:00:04]}  Qxh4+ {[%clk 0:00:16]} 37. Kg1 {[%clk 0:00:05]}  Rc1+ {[%clk 0:00:16]} 38. Bf1 {[%clk 0:00:05]}  Qe1 {[%clk 0:00:16]} 39. Qd8+ {[%clk 0:00:05]}  Kg7 {[%clk 0:00:16]} 40. Qf6+ {[%clk 0:00:02]}  Kxf6 {[%clk 0:00:16]} 0-1


[Site "https://www.chess.com"]

[Event "Titled Tuesday Blitz April 12 Early 2022"]
[White "Steil-Antoni, Fiona"]
[Black "Tuleyeva-Aketayeva, Dana"]
[WhiteFideId "4001249"]
[BlackFideId "13701932"]
[WhiteElo "2059"]
[BlackElo "1875"]
[Result "1-0"]
[Round "08"]
[TimeControl "180+1"]
[Date "2022.04.13"]
[WhiteClock "0:00:08"]
[BlackClock "0:00:01"]

1. e4 {[%clk 0:03:00]}  c5 {[%clk 0:02:56]} 2. Nc3 {[%clk 0:02:58]}  Nc6 {[%clk 0:02:55]} 3. f4 {[%clk 0:02:57]}  g6 {[%clk 0:02:55]} 4. Nf3 {[%clk 0:02:51]}  Bg7 {[%clk 0:02:55]} 5. Bb5 {[%clk 0:02:49]}  d6 {[%clk 0:02:44]} 6. Bxc6+ {[%clk 0:02:37]}  bxc6 {[%clk 0:02:44]} 7. d3 {[%clk 0:02:37]}  Nf6 {[%clk 0:02:42]} 8. O-O {[%clk 0:02:38]}  O-O {[%clk 0:02:41]} 9. Qe1 {[%clk 0:02:38]}  Ba6 {[%clk 0:02:34]} 10. Be3 {[%clk 0:02:29]}  Rb8 {[%clk 0:02:31]} 11. Rb1 {[%clk 0:02:26]}  Ng4 {[%clk 0:02:23]} 12. Bd2 {[%clk 0:02:23]}  Nf6 {[%clk 0:01:44]} 13. f5 {[%clk 0:02:20]}  Nd7 {[%clk 0:01:40]} 14. Qh4 {[%clk 0:02:14]}  Bf6 {[%clk 0:01:24]} 15. Qh3 {[%clk 0:02:02]}  Ne5 {[%clk 0:01:20]} 16. Bh6 {[%clk 0:01:57]}  Nxf3+ {[%clk 0:01:17]} 17. gxf3 {[%clk 0:01:46]}  Bg7 {[%clk 0:01:12]} 18. Nd1 {[%clk 0:01:32]}  c4 {[%clk 0:01:06]} 19. f4 {[%clk 0:01:07]}  cxd3 {[%clk 0:01:02]} 20. cxd3 {[%clk 0:01:06]}  Qb6+ {[%clk 0:00:36]} 21. Kg2 {[%clk 0:01:00]}  Qd4 {[%clk 0:00:35]} 22. Bxg7 {[%clk 0:00:54]}  Kxg7 {[%clk 0:00:34]} 23. Nf2 {[%clk 0:00:54]}  Rxb2 {[%clk 0:00:28]} 24. Rxb2 {[%clk 0:00:54]}  Qxb2 {[%clk 0:00:28]} 25. Kh1 {[%clk 0:00:46]}  Qe2 {[%clk 0:00:24]} 26. fxg6 {[%clk 0:00:28]}  hxg6 {[%clk 0:00:22]} 27. Kg1 {[%clk 0:00:20]}  Rb8 {[%clk 0:00:14]} 28. f5 {[%clk 0:00:19]}  Rb2 {[%clk 0:00:12]} 29. fxg6 {[%clk 0:00:18]}  fxg6 {[%clk 0:00:12]} 30. Qe6 {[%clk 0:00:17]}  Qh5 {[%clk 0:00:07]} 31. Qxe7+ {[%clk 0:00:17]}  Kh6 {[%clk 0:00:06]} 32. Qf8+ {[%clk 0:00:17]}  Kh7 {[%clk 0:00:06]} 33. Qf7+ {[%clk 0:00:16]}  Kh6 {[%clk 0:00:06]} 34. Qf4+ {[%clk 0:00:16]}  Qg5+ {[%clk 0:00:05]} 35. Qxg5+ {[%clk 0:00:15]}  Kxg5 {[%clk 0:00:06]} 36. Nh3+ {[%clk 0:00:15]}  Kh6 {[%clk 0:00:05]} 37. Nf4 {[%clk 0:00:15]}  g5 {[%clk 0:00:04]} 38. Ne6 {[%clk 0:00:15]}  Bxd3 {[%clk 0:00:04]} 39. Rf6+ {[%clk 0:00:14]}  Kh5 {[%clk 0:00:04]} 40. Ng7+ {[%clk 0:00:13]}  Kg4 {[%clk 0:00:02]} 41. Rxd6 {[%clk 0:00:11]}  Bxe4 {[%clk 0:00:02]} 42. Rd4 {[%clk 0:00:10]}  Kf4 {[%clk 0:00:01]} 43. Ne6+ {[%clk 0:00:10]}  Ke5 {[%clk 0:00:01]} 44. Rc4 {[%clk 0:00:08]} 1-0


[Site "https://www.chess.com"]

[Event "Titled Tuesday Blitz April 12 Early 2022"]
[White "Taspinar, Yanki"]
[Black "Kobalia, Mikhail"]
[WhiteFideId "34561188"]
[BlackFideId "4119150"]
[WhiteElo "1518"]
[BlackElo "2667"]
[Result "1-0"]
[Round "08"]
[TimeControl "180+1"]
[Date "2022.04.12"]
[WhiteClock "0:00:31"]
[BlackClock "0:00:43"]

1. e4 {[%clk 0:03:00]}  c5 {[%clk 0:02:59]} 2. Nf3 {[%clk 0:03:00]}  e6 {[%clk 0:02:59]} 3. d4 {[%clk 0:03:00]}  cxd4 {[%clk 0:03:00]} 4. Nxd4 {[%clk 0:03:01]}  a6 {[%clk 0:03:00]} 5. c4 {[%clk 0:03:01]}  Nf6 {[%clk 0:02:59]} 6. Nc3 {[%clk 0:03:01]}  Qc7 {[%clk 0:03:00]} 7. a3 {[%clk 0:02:59]}  d6 {[%clk 0:03:00]} 8. Be3 {[%clk 0:02:59]}  Be7 {[%clk 0:03:00]} 9. Rc1 {[%clk 0:02:58]}  O-O {[%clk 0:03:00]} 10. f3 {[%clk 0:02:58]}  b6 {[%clk 0:03:01]} 11. Be2 {[%clk 0:02:56]}  Bb7 {[%clk 0:03:01]} 12. O-O {[%clk 0:02:56]}  Nbd7 {[%clk 0:03:01]} 13. b4 {[%clk 0:02:55]}  Rfc8 {[%clk 0:03:00]} 14. Qd2 {[%clk 0:02:55]}  Qd8 {[%clk 0:02:59]} 15. Rfd1 {[%clk 0:02:54]}  Qe8 {[%clk 0:02:59]} 16. Kh1 {[%clk 0:02:50]}  Ne5 {[%clk 0:02:59]} 17. Qa2 {[%clk 0:02:43]}  Bf8 {[%clk 0:02:53]} 18. Qb3 {[%clk 0:02:41]}  h5 {[%clk 0:02:44]} 19. Na4 {[%clk 0:02:30]}  Ned7 {[%clk 0:02:39]} 20. Nc2 {[%clk 0:02:23]}  d5 {[%clk 0:02:39]} 21. Nxb6 {[%clk 0:02:06]}  Nxb6 {[%clk 0:02:38]} 22. Bxb6 {[%clk 0:02:07]}  dxe4 {[%clk 0:02:37]} 23. c5 {[%clk 0:02:03]}  Nd5 {[%clk 0:02:29]} 24. fxe4 {[%clk 0:01:37]}  Nxb6 {[%clk 0:02:28]} 25. cxb6 {[%clk 0:01:38]}  Qc6 {[%clk 0:02:25]} 26. Qe3 {[%clk 0:01:32]}  Qxe4 {[%clk 0:02:20]} 27. Qxe4 {[%clk 0:01:32]}  Bxe4 {[%clk 0:02:21]} 28. Ne3 {[%clk 0:01:25]}  Rcb8 {[%clk 0:02:18]} 29. Nc4 {[%clk 0:01:20]}  Bd5 {[%clk 0:02:14]} 30. Bf3 {[%clk 0:01:19]}  Bxf3 {[%clk 0:02:06]} 31. gxf3 {[%clk 0:01:20]}  Rb7 {[%clk 0:02:06]} 32. Rb1 {[%clk 0:01:04]}  Rc8 {[%clk 0:02:03]} 33. Rdc1 {[%clk 0:01:04]}  g5 {[%clk 0:02:00]} 34. a4 {[%clk 0:01:03]}  Rc6 {[%clk 0:01:46]} 35. a5 {[%clk 0:01:00]}  Rb8 {[%clk 0:01:46]} 36. b5 {[%clk 0:00:44]}  axb5 {[%clk 0:01:46]} 37. Rxb5 {[%clk 0:00:45]}  Rc5 {[%clk 0:00:48]} 38. Rxc5 {[%clk 0:00:35]}  Bxc5 {[%clk 0:00:49]} 39. Rb1 {[%clk 0:00:36]}  Ra8 {[%clk 0:00:47]} 40. b7 {[%clk 0:00:35]}  Rb8 {[%clk 0:00:46]} 41. a6 {[%clk 0:00:34]}  Ba7 {[%clk 0:00:43]} 42. Ne5 {[%clk 0:00:31]} 1-0


[Site "https://www.chess.com"]

[Event "Titled Tuesday Blitz April 12 Early 2022"]
[White "Vlassov, Nikolai"]
[Black "Pakleza, Zbigniew"]
[WhiteFideId "4103360"]
[BlackFideId "1119290"]
[WhiteElo "2407"]
[BlackElo "2467"]
[Result "0-1"]
[Round "08"]
[TimeControl "180+1"]
[Date "2022.04.12"]
[WhiteClock "0:00:07"]
[BlackClock "0:00:49"]

1. e4 {[%clk 0:02:58]}  d6 {[%clk 0:02:59]} 2. f4 {[%clk 0:02:57]}  Nf6 {[%clk 0:02:59]} 3. Nc3 {[%clk 0:02:57]}  d5 {[%clk 0:03:00]} 4. e5 {[%clk 0:02:53]}  d4 {[%clk 0:03:00]} 5. Nce2 {[%clk 0:02:52]}  Nd5 {[%clk 0:03:00]} 6. Nxd4 {[%clk 0:02:38]}  Nxf4 {[%clk 0:03:00]} 7. Ngf3 {[%clk 0:02:34]}  Ng6 {[%clk 0:02:38]} 8. e6 {[%clk 0:02:32]}  f6 {[%clk 0:02:30]} 9. Bc4 {[%clk 0:02:29]}  c5 {[%clk 0:02:08]} 10. Bb5+ {[%clk 0:02:23]}  Nd7 {[%clk 0:01:53]} 11. exd7+ {[%clk 0:02:09]}  Bxd7 {[%clk 0:01:54]} 12. Ne6 {[%clk 0:02:07]}  Qb6 {[%clk 0:01:50]} 13. Bxd7+ {[%clk 0:01:59]}  Kxd7 {[%clk 0:01:51]} 14. Nxf8+ {[%clk 0:01:59]}  Rhxf8 {[%clk 0:01:52]} 15. O-O {[%clk 0:01:58]}  e5 {[%clk 0:01:52]} 16. d3 {[%clk 0:01:54]}  Rad8 {[%clk 0:01:41]} 17. Nd2 {[%clk 0:01:50]}  Kc8 {[%clk 0:01:33]} 18. Nc4 {[%clk 0:01:50]}  Qc7 {[%clk 0:01:31]} 19. a4 {[%clk 0:01:45]}  Kb8 {[%clk 0:01:31]} 20. Qh5 {[%clk 0:01:43]}  Ne7 {[%clk 0:01:26]} 21. Bd2 {[%clk 0:01:29]}  Nc6 {[%clk 0:01:25]} 22. Qxh7 {[%clk 0:01:17]}  Nd4 {[%clk 0:01:22]} 23. Ba5 {[%clk 0:00:56]}  b6 {[%clk 0:01:20]} 24. Bc3 {[%clk 0:00:54]}  Nxc2 {[%clk 0:01:18]} 25. Rac1 {[%clk 0:00:52]}  Nd4 {[%clk 0:01:14]} 26. Bxd4 {[%clk 0:00:51]}  Rxd4 {[%clk 0:01:15]} 27. Rf3 {[%clk 0:00:47]}  Rfd8 {[%clk 0:01:14]} 28. Rg3 {[%clk 0:00:43]}  R8d7 {[%clk 0:01:14]} 29. Qg8+ {[%clk 0:00:37]}  Kb7 {[%clk 0:01:14]} 30. a5 {[%clk 0:00:33]}  b5 {[%clk 0:01:11]} 31. a6+ {[%clk 0:00:32]}  Kxa6 {[%clk 0:01:11]} 32. Ra1+ {[%clk 0:00:32]}  Kb7 {[%clk 0:01:09]} 33. Na5+ {[%clk 0:00:28]}  Kb6 {[%clk 0:01:10]} 34. Qh7 {[%clk 0:00:18]}  c4 {[%clk 0:01:04]} 35. dxc4 {[%clk 0:00:17]}  Rd1+ {[%clk 0:01:05]} 36. Rxd1 {[%clk 0:00:16]}  Rxd1+ {[%clk 0:01:01]} 37. Kf2 {[%clk 0:00:16]}  Qc5+ {[%clk 0:00:53]} 38. Ke2 {[%clk 0:00:16]}  Qg1 {[%clk 0:00:49]} 39. Re3 {[%clk 0:00:07]}  Qf1# {[%clk 0:00:49]} 0-1


[Site "https://www.chess.com"]